fUSD/lending_fUSD_20260620
["ID","MTS","AMOUNT","RATE_DAILY","PERIOD"]
[425781751,1781888230000,-500.0,0.00021151,2]
[425781756,1781888230000,-376.66427862,0.00021681,2]
[425781758,1781888230000,-167.23,0.00021725,2]
[425781759,1781888230000,-166.66,0.00021767,2]
[425781768,1781888230000,-150.0,0.00021918,2]
[425781757,1781888230000,-150.0,0.00021681,2]
[425781761,1781888230000,-500.0,0.00021912,2]
[425781764,1781888230000,-150.0,0.00021918,2]
[425781763,1781888230000,-195.13115595,0.00021912,2]
[425781765,1781888230000,-150.0,0.00021918,2]
[425781766,1781888230000,-150.0,0.00021918,2]
[425781767,1781888230000,-150.0,0.00021918,2]
[425781762,1781888230000,-500.0,0.00021912,2]
[425781769,1781888230000,-150.0,0.00021918,2]
[425781773,1781888230000,-150.0,0.00021918,2]
[425781797,1781888230000,-558.0,0.00022,2]
[425781771,1781888230000,-150.0,0.00021918,2]
[425781772,1781888230000,-150.0,0.00021918,2]
[425781839,1781888231000,-151.0,0.00023,2]
[425781836,1781888231000,-151.0,0.00023,2]
[425781835,1781888231000,-151.0,0.00023,2]
[425781831,1781888231000,-151.0,0.00023,2]
[425781833,1781888231000,-151.0,0.00023,2]
[425781838,1781888231000,-151.0,0.00023,2]
[425781834,1781888231000,-558.0,0.00023,2]
[425781837,1781888231000,-151.0,0.00023,2]
[425781830,1781888231000,-151.0,0.00023,2]
[425781840,1781888231000,-151.0,0.00023,2]
[425781832,1781888231000,-151.0,0.00023,2]
[425781841,1781888231000,-151.0,0.00023,2]
[425781864,1781888231000,-273.0,0.00023989,2]
[425781842,1781888231000,-167.0,0.00023,2]
[425781845,1781888231000,-410.0,0.00023041,2]
[425781849,1781888231000,-1562.4016224,0.000236,2]
[425781844,1781888231000,-292.0,0.00023,2]
[425781843,1781888231000,-310.0,0.00023,2]
[425781846,1781888231000,-273.0,0.00023239,2]
[425781847,1781888231000,-373.33246496,0.0002332,2]
[425781848,1781888231000,-317.96655086,0.000236,2]
[425781851,1781888231000,-10295.84778487,0.000236,2]
[425781863,1781888231000,-896.04336713,0.000239,2]
[425781854,1781888231000,-896.04336713,0.000236,2]
[425781829,1781888231000,-151.0,0.00023,2]
[425781850,1781888231000,-214.15109885,0.000236,2]
[425781828,1781888231000,-151.0,0.00023,2]
[425781803,1781888231000,-410.0,0.00022561,2]
[425781824,1781888231000,-151.0,0.00023,2]
[425781800,1781888231000,-335.72,0.00022186,2]
[425781802,1781888231000,-1852.42,0.00022298,2]
[425781799,1781888231000,-310.0,0.00022,2]
[425781801,1781888231000,-1000.0,0.00022249,2]
[425781804,1781888231000,-500.0,0.00022562,2]
[425781853,1781888231000,-306.34832162,0.000236,2]
[425781814,1781888231000,-688.0,0.00023,2]
[425781806,1781888231000,-1376.3005,0.00022739,2]
[425781805,1781888231000,-506.0,0.00022727,4]
[425781808,1781888231000,-273.0,0.00022865,2]
[425781810,1781888231000,-500.0,0.00022999,2]
[425781813,1781888231000,-171.0,0.00023,2]
[425781812,1781888231000,-248.0,0.00023,2]
[425781807,1781888231000,-877.25412136,0.00022839,2]
[425781809,1781888231000,-500.0,0.00022999,2]
[425781811,1781888231000,-212.0,0.00023,2]
[425781818,1781888231000,-150.0,0.00023,2]
[425781817,1781888231000,-171.0,0.00023,2]
[425781815,1781888231000,-971.0,0.00023,2]
[425781820,1781888231000,-195.0,0.00023,2]
[425781827,1781888231000,-151.0,0.00023,2]
[425781821,1781888231000,-151.0,0.00023,2]
[425781823,1781888231000,-151.0,0.00023,2]
[425781825,1781888231000,-151.0,0.00023,2]
[425781822,1781888231000,-151.0,0.00023,2]
[425781816,1781888231000,-192.0,0.00023,2]
[425781819,1781888231000,-174.0,0.00023,2]
[425781826,1781888231000,-151.0,0.00023,2]
[425781862,1781888231000,-306.34832162,0.000239,2]
[425781852,1781888231000,-1727.48019792,0.000236,2]
[425781856,1781888231000,-216.24448118,0.00023642,2]
[425781894,1781888231000,-10295.84778487,0.000246,2]
[425781891,1781888231000,-317.96655086,0.000246,2]
[425781895,1781888231000,-1727.48019792,0.000246,2]
[425781893,1781888231000,-214.15109885,0.000246,2]
[425781899,1781888231000,-1000.0,0.00024658,2]
[425781896,1781888231000,-306.34832162,0.000246,2]
[425781897,1781888231000,-896.04336713,0.000246,2]
[425781898,1781888231000,-311.93,0.00024658,2]
[425781889,1781888231000,-306.34832162,0.000244,2]
[425781901,1781888231000,-1562.4016224,0.000248,2]
[425781903,1781888231000,-335.72,0.00024959,2]
[425781902,1781888231000,-10295.84778487,0.000248,2]
[425781911,1781888231000,-205.0,0.00025,2]
[425781904,1781888231000,-500.0,0.00024999,2]
[425781906,1781888231000,-257.0,0.00025,2]
[425781910,1781888231000,-988.0,0.00025,2]
[425781909,1781888231000,-688.0,0.00025,2]
[425781905,1781888231000,-223.0,0.00025,2]
[425781908,1781888231000,-199.84842197,0.00025,2]
[425781907,1781888231000,-190.0,0.00025,2]
[425781912,1781888231000,-171.0,0.00025,2]
[425781914,1781888231000,-191.0,0.00025,2]
[425781916,1781888231000,-565.0,0.00025,2]
[425781915,1781888231000,-195.0,0.00025,2]
[425781913,1781888231000,-150.0,0.00025,2]
[425781917,1781888231000,-311.0,0.00025,2]
[425781855,1781888231000,-273.0,0.00023614,2]
[425781890,1781888231000,-896.04336713,0.000244,2]
[425781888,1781888231000,-1727.48019792,0.000244,2]
[425781900,1781888231000,-494.41,0.00024658,2]
[425781884,1781888231000,-317.96655086,0.000244,2]
[425781892,1781888231000,-1562.4016224,0.000246,2]
[425781859,1781888231000,-214.15109885,0.000239,2]
[425781860,1781888231000,-10295.84778487,0.000239,2]
[425781858,1781888231000,-1562.4016224,0.000239,2]
[425781861,1781888231000,-1727.48019792,0.000239,2]
[425781865,1781888231000,-212.0,0.00024,2]
[425781870,1781888231000,-192.0,0.00024,2]
[425781867,1781888231000,-171.0,0.00024,2]
[425781875,1781888231000,-310.0,0.00024,2]
[425781872,1781888231000,-174.0,0.00024,2]
[425781866,1781888231000,-248.0,0.00024,2]
[425781873,1781888231000,-195.0,0.00024,2]
[425781869,1781888231000,-971.0,0.00024,2]
[425781874,1781888231000,-558.0,0.00024,2]
[425781857,1781888231000,-317.96655086,0.000239,2]
[425781871,1781888231000,-171.0,0.00024,2]
[425781868,1781888231000,-688.0,0.00024,2]
[425781882,1781888231000,-306.34832162,0.000241,2]
[425781885,1781888231000,-1562.4016224,0.000244,2]
[425781886,1781888231000,-214.15109885,0.000244,2]
[425781881,1781888231000,-1727.48019792,0.000241,2]
[425781887,1781888231000,-10295.84778487,0.000244,2]
[425781883,1781888231000,-896.04336713,0.000241,2]
[425781878,1781888231000,-1562.4016224,0.000241,2]
[425781877,1781888231000,-317.96655086,0.000241,2]
[425781876,1781888231000,-506.0,0.00024091,5]
[425781879,1781888231000,-214.15109885,0.000241,2]
[425781880,1781888231000,-10295.84778487,0.000241,2]
[425781959,1781888232000,-150.0,0.00027397,2]
[425781950,1781888232000,-250.0,0.0002724,2]
[425781952,1781888232000,-150.0,0.0002724,2]
[425781958,1781888232000,-500.0,0.00027397,2]
[425781951,1781888232000,-150.0,0.0002724,2]
[425781949,1781888232000,-1360.0,0.0002724,2]
[425781947,1781888232000,-1276.0,0.0002724,2]
[425781948,1781888232000,-383.0,0.0002724,2]
[425781957,1781888232000,-150.0,0.00027397,2]
[425781956,1781888232000,-500.0,0.00027384,2]
[425781962,1781888232000,-500.0,0.00027397,2]
[425781953,1781888232000,-778.0,0.0002724,2]
[425781967,1781888232000,-500.0,0.00027397,2]
[425781969,1781888232000,-500.0,0.00027397,2]
[425781965,1781888232000,-500.0,0.00027397,2]
[425781963,1781888232000,-500.0,0.00027397,2]
[425781964,1781888232000,-264.84490402,0.00027397,2]
[425781970,1781888232000,-500.0,0.00027397,2]
[425781960,1781888232000,-500.0,0.00027397,2]
[425781966,1781888232000,-500.0,0.00027397,2]
[425781968,1781888232000,-500.0,0.00027397,2]
[425781971,1781888232000,-500.0,0.00027397,2]
[425781983,1781888232000,-1030.0,0.00027475,2]
[425781974,1781888232000,-500.0,0.00027397,2]
[425781972,1781888232000,-500.0,0.00027397,2]
[425781954,1781888232000,-150.0,0.0002724,2]
[425781961,1781888232000,-150.0,0.00027397,2]
[425781955,1781888232000,-1817.92798677,0.00027297,2]
[425781973,1781888232000,-500.0,0.00027397,2]
[425781942,1781888232000,-10295.84778487,0.000269,2]
[425781922,1781888232000,-10295.84778487,0.000253,2]
[425781919,1781888232000,-10295.84778487,0.000251,2]
[425781918,1781888232000,-1562.4016224,0.000251,2]
[425781921,1781888232000,-1562.4016224,0.000253,2]
[425781920,1781888232000,-163.21,0.0002529,2]
[425781926,1781888232000,-10295.84778487,0.000256,2]
[425781934,1781888232000,-10295.84778487,0.000264,2]
[425781923,1781888232000,-506.0,0.00025455,7]
[425781925,1781888232000,-1562.4016224,0.000256,2]
[425781924,1781888232000,-2000.0,0.000255,2]
[425781929,1781888232000,-411.0,0.00025944,2]
[425781931,1781888232000,-10295.84778487,0.000261,2]
[425781927,1781888232000,-1562.4016224,0.000259,2]
[425781932,1781888232000,-477.28034892,0.00026282,2]
[425781930,1781888232000,-150.0,0.00026,2]
[425781933,1781888232000,-289.90020806,0.00026397,2]
[425781928,1781888232000,-10295.84778487,0.000259,2]
[425781946,1781888232000,-3560.0,0.0002724,2]
[425781941,1781888232000,-500.0,0.00026836,2]
[425781937,1781888232000,-476.65938,0.00026546,2]
[425781936,1781888232000,-330.937331,0.00026545,2]
[425781940,1781888232000,-506.0,0.00026818,8]
[425781944,1781888232000,-10295.84778487,0.000272,2]
[425781945,1781888232000,-500.0,0.00027205,2]
[425781938,1781888232000,-204.0,0.00026546,5]
[425781943,1781888232000,-1896.57972959,0.00027139,2]
[425781935,1781888232000,-432.96511,0.00026545,2]
[425781939,1781888232000,-10295.84778487,0.000266,2]
[425781975,1781888232000,-500.0,0.00027397,2]
[425781992,1781888232000,-1428.38747117,0.00027475,2]
[425781979,1781888232000,-1500.0,0.00027397,2]
[425782018,1781888232000,-426.32,0.00027828,2]
[425782013,1781888232000,-595.85,0.00027713,7]
[425782017,1781888232000,-426.32,0.00027798,30]
[425782009,1781888232000,-426.32,0.00027647,2]
[425782015,1781888232000,-426.32,0.00027737,2]
[425782012,1781888232000,-426.32,0.00027707,30]
[425782014,1781888232000,-653.95,0.00027714,7]
[425782011,1781888232000,-426.32,0.00027677,7]
[425782016,1781888232000,-426.32,0.00027768,7]
[425782019,1781888232000,-426.32,0.00027858,7]
[425782021,1781888232000,-653.95,0.00027875,2]
[425782031,1781888232000,-426.32,0.00028099,2]
[425782032,1781888232000,-405.49,0.0002813,7]
[425782020,1781888232000,-595.85,0.00027874,2]
[425782022,1781888232000,-426.32,0.00027888,30]
[425782023,1781888232000,-426.32,0.00027918,2]
[425782025,1781888232000,-426.32,0.00027979,30]
[425782024,1781888232000,-426.32,0.00027949,7]
[425782028,1781888232000,-1211.9,0.00028038,30]
[425782026,1781888232000,-426.32,0.00028009,2]
[425782027,1781888232000,-595.85,0.00028035,30]
[425782030,1781888232000,-426.32,0.00028069,30]
[425782029,1781888232000,-426.32,0.00028039,7]
[425782035,1781888232000,-506.0,0.00028182,9]
[425782033,1781888232000,-426.39,0.0002813,7]
[425782034,1781888232000,-1211.9,0.00028144,7]
[425782036,1781888232000,-653.95,0.00028196,7]
[425782010,1781888232000,-635.65895652,0.00027666,7]
[425782008,1781888232000,-426.32,0.00027617,30]
[425781976,1781888232000,-355.29809618,0.00027397,2]
[425782003,1781888232000,-500.0,0.000275,7]
[425782004,1781888232000,-150.0,0.000275,2]
[425781977,1781888232000,-150.0,0.00027397,2]
[425781978,1781888232000,-150.0,0.00027397,2]
[425781980,1781888232000,-311.93,0.00027397,2]
[425781982,1781888232000,-300.0,0.00027397,2]
[425781981,1781888232000,-1000.0,0.00027397,20]
[425781993,1781888232000,-1481.2378076,0.00027475,2]
[425781989,1781888232000,-1280.88388877,0.00027475,2]
[425781994,1781888232000,-1536.04360648,0.00027475,2]
[425781988,1781888232000,-1235.18214925,0.00027475,2]
[425781987,1781888232000,-1191.11104074,0.00027475,2]
[425781984,1781888232000,-1068.11,0.00027475,2]
[425781986,1781888232000,-1148.61238259,0.00027475,2]
[425781995,1781888232000,-1592.87721992,0.00027475,2]
[425781985,1781888232000,-1107.63007,0.00027475,2]
[425781991,1781888232000,-1377.42282658,0.00027475,2]
[425782001,1781888232000,-1980.8648231,0.00027475,2]
[425782000,1781888232000,-1910.18787185,0.00027475,2]
[425782006,1781888232000,-426.32,0.00027557,2]
[425781996,1781888232000,-1651.81367706,0.00027475,2]
[425782007,1781888232000,-426.32,0.00027587,7]
[425781999,1781888232000,-1842.0326633,0.00027475,2]
[425782002,1781888232000,-2054.15682156,0.00027475,2]
[425782005,1781888232000,-595.85,0.00027553,30]
[425781997,1781888232000,-1712.93078311,0.00027475,2]
[425782037,1781888232000,-596.31,0.00028196,7]
[425781990,1781888232000,-1328.27659266,0.00027475,2]
[425781998,1781888232000,-1776.30922209,0.00027475,2]
[425782073,1781888233000,-17150.35,0.00029,2]
[425782077,1781888233000,-196.88869375,0.00029,2]
[425782078,1781888233000,-1817.92798677,0.00029136,2]
[425782075,1781888233000,-249.89015845,0.00029,2]
[425782074,1781888233000,-201.66174538,0.00029,2]
[425782080,1781888233000,-152.0,0.00029256,7]
[425782072,1781888233000,-310.0,0.00028962,30]
[425782076,1781888233000,-292.0,0.00029,7]
[425782069,1781888233000,-200.0,0.00028875,2]
[425782070,1781888233000,-199.0,0.000289,2]
[425782079,1781888233000,-329.61,0.00029208,30]
[425782071,1781888233000,-200.0,0.000289,2]
[425782081,1781888233000,-152.0,0.00029256,7]
[425782105,1781888233000,-173.64508564,0.00030017,2]
[425782083,1781888233000,-152.0,0.000293,7]
[425782091,1781888233000,-1848.0,0.0002978,5]
[425782089,1781888233000,-329.61,0.00029679,2]
[425782086,1781888233000,-551.19,0.00029468,7]
[425782092,1781888233000,-2300.0,0.000298,10]
[425782088,1781888233000,-1896.57972958,0.00029642,2]
[425782084,1781888233000,-535.93,0.00029385,7]
[425782085,1781888233000,-349.72628031,0.0002942,2]
[425782090,1781888233000,-1581.0,0.0002978,5]
[425782087,1781888233000,-506.0,0.00029545,11]
[425782104,1781888233000,-66242.00626636,0.0003,2]
[425782094,1781888233000,-855.35108506,0.00029831,7]
[425782065,1781888233000,-329.61,0.00028738,7]
[425782082,1781888233000,-166.48403506,0.00029262,4]
[425782063,1781888233000,-1211.9,0.00028679,30]
[425782053,1781888233000,-1896.57972958,0.00028391,2]
[425782061,1781888233000,-903.64602128,0.00028658,2]
[425782093,1781888233000,-200.0,0.00029817,2]
[425782042,1781888233000,-329.61,0.00028268,2]
[425782043,1781888233000,-312.73062822,0.000283,2]
[425782040,1781888233000,-1211.9,0.00028251,2]
[425782038,1781888233000,-595.85,0.00028196,7]
[425782041,1781888233000,-535.93,0.00028264,30]
[425782039,1781888233000,-1817.92798677,0.00028216,2]
[425782055,1781888233000,-199.96658507,0.0002842,2]
[425782045,1781888233000,-312.73062821,0.000283,2]
[425782044,1781888233000,-312.73062821,0.000283,2]
[425782048,1781888233000,-854.51757601,0.000283,2]
[425782046,1781888233000,-854.51757604,0.000283,2]
[425782049,1781888233000,-244.69721723,0.000283,2]
[425782047,1781888233000,-854.51757601,0.000283,2]
[425782054,1781888233000,-169.6284224,0.00028397,7]
[425782052,1781888233000,-1211.9,0.00028358,30]
[425782050,1781888233000,-653.95,0.00028357,2]
[425782051,1781888233000,-551.19,0.00028357,30]
[425782059,1781888233000,-327.44594635,0.00028658,2]
[425782058,1781888233000,-10000.0,0.0002858,2]
[425782066,1781888233000,-359.71035403,0.00028766,7]
[425782062,1781888233000,-653.95,0.00028678,7]
[425782067,1781888233000,-150.0,0.00028767,2]
[425782056,1781888233000,-1211.9,0.00028465,7]
[425782060,1781888233000,-807.29204255,0.00028658,2]
[425782064,1781888233000,-272.38407243,0.00028679,30]
[425782068,1781888233000,-653.95,0.00028839,2]
[425782057,1781888233000,-1211.9,0.00028572,2]
[425782096,1781888233000,-310.0,0.00029962,30]
[425782098,1781888233000,-7518.118,0.00029963,24]
[425782097,1781888233000,-168.691,0.00029963,24]
[425782133,1781888233000,-329.61,0.00030149,7]
[425782134,1781888233000,-191.9,0.000302,7]
[425782143,1781888233000,-778.0,0.0003024,2]
[425782132,1781888233000,-162.0894043,0.00030137,2]
[425782136,1781888233000,-216.19785429,0.00030219,7]
[425782137,1781888233000,-3560.0,0.0003024,2]
[425782138,1781888233000,-1276.0,0.0003024,2]
[425782141,1781888233000,-150.0,0.0003024,2]
[425782140,1781888233000,-1360.0,0.0003024,2]
[425782142,1781888233000,-150.0,0.0003024,2]
[425782135,1781888233000,-152.0,0.00030219,7]
[425782139,1781888233000,-383.0,0.0003024,2]
[425782145,1781888233000,-268.62366795,0.00030254,2]
[425782129,1781888233000,-158.95667727,0.0003013,2]
[425782155,1781888233000,-635.65895652,0.00030845,7]
[425782146,1781888233000,-2551.38377141,0.00030255,2]
[425782148,1781888233000,-855.35108506,0.00030387,7]
[425782149,1781888233000,-535.93,0.00030506,2]
[425782144,1781888233000,-2499.99,0.0003025,2]
[425782154,1781888233000,-198.0,0.00030777,2]
[425782153,1781888233000,-200.0,0.00030759,2]
[425782150,1781888233000,-551.19,0.00030579,2]
[425782151,1781888233000,-329.61,0.00030619,30]
[425782152,1781888233000,-453.97345405,0.00030625,2]
[425782156,1781888233000,-150.0,0.00030875,2]
[425782095,1781888233000,-4700.0,0.000299,10]
[425782159,1781888233000,-150.0,0.00030875,2]
[425782157,1781888233000,-150.0,0.00030875,2]
[425782147,1781888233000,-250.0,0.00030344,7]
[425782128,1781888233000,-42732.11894248,0.0003013,2]
[425782158,1781888233000,-150.0,0.00030875,2]
[425782124,1781888233000,-160.0,0.00030129,2]
[425782125,1781888233000,-150.0,0.00030129,20]
[425782100,1781888233000,-4625.98,0.0003,2]
[425782101,1781888233000,-2499.96,0.0003,2]
[425782102,1781888233000,-15000.0,0.0003,20]
[425782103,1781888233000,-2500.0,0.0003,2]
[425782106,1781888233000,-367.67341828,0.0003003,2]
[425782108,1781888233000,-564.33159327,0.0003003,2]
[425782109,1781888233000,-225.7326373,0.0003003,2]
[425782116,1781888233000,-151077.4681581,0.00030108,2]
[425782114,1781888233000,-152.0,0.00030102,3]
[425782112,1781888233000,-476.65938,0.00030083,2]
[425782113,1781888233000,-163.21,0.00030099,2]
[425782107,1781888233000,-306.03288546,0.0003003,2]
[425782099,1781888233000,-2499.99,0.0003,2]
[425782110,1781888233000,-3441.60557287,0.0003003,2]
[425782126,1781888233000,-699738.25746193,0.0003013,7]
[425782123,1781888233000,-163.21,0.0003012,2]
[425782127,1781888233000,-5040.00889834,0.0003013,2]
[425782121,1781888233000,-379.4498936,0.00030109,2]
[425782117,1781888233000,-18437.0619678,0.00030109,2]
[425782120,1781888233000,-233.8132839,0.00030109,2]
[425782122,1781888233000,-70479.4568542,0.00030109,2]
[425782119,1781888233000,-494.585345,0.00030109,2]
[425782130,1781888233000,-150.0,0.00030137,2]
[425782111,1781888233000,-1817.92798677,0.00030055,2]
[425782118,1781888233000,-1391.9339442,0.00030109,2]
[425782115,1781888233000,-9985.0103712,0.00030108,2]
[425782131,1781888233000,-311.93,0.00030137,2]
[425782197,1781888234000,-800.0,0.00032,2]
[425782212,1781888234000,-209.84,0.00032236,2]
[425782192,1781888234000,-280.14682505,0.00031896,2]
[425782196,1781888234000,-191.9,0.00032,7]
[425782189,1781888234000,-3218.37690194,0.00031733,2]
[425782198,1781888234000,-800.0,0.00032,2]
[425782194,1781888234000,-310.0,0.00031962,30]
[425782193,1781888234000,-209.15711931,0.00031945,120]
[425782203,1781888234000,-477.28034892,0.00032102,2]
[425782186,1781888234000,-535.93,0.00031628,30]
[425782195,1781888234000,-4923.22,0.00031991,2]
[425782199,1781888234000,-329.61,0.00032031,30]
[425782209,1781888234000,-209.84,0.00032234,2]
[425782201,1781888234000,-150.0,0.00032076,2]
[425782200,1781888234000,-675.941,0.00032045,2]
[425782214,1781888234000,-209.84,0.00032238,2]
[425782205,1781888234000,-1896.57972958,0.00032145,2]
[425782204,1781888234000,-367.67341826,0.00032111,2]
[425782208,1781888234000,-209.84,0.00032232,2]
[425782210,1781888234000,-209.84,0.00032234,2]
[425782215,1781888234000,-1791.0,0.00032238,10]
[425782211,1781888234000,-209.84,0.00032236,2]
[425782206,1781888234000,-2410.2541323,0.00032209,2]
[425782207,1781888234000,-209.84,0.0003223,2]
[425782191,1781888234000,-1817.92798677,0.00031894,2]
[425782202,1781888234000,-150.0,0.00032076,2]
[425782188,1781888234000,-3463.0001789,0.00031707,2]
[425782175,1781888234000,-203.1777847,0.00031504,2]
[425782187,1781888234000,-551.19,0.0003169,30]
[425782160,1781888234000,-186.58401334,0.00030876,2]
[425782166,1781888234000,-367.67341826,0.00031071,2]
[425782165,1781888234000,-1817.92798677,0.00030974,2]
[425782163,1781888234000,-506.0,0.00030909,12]
[425782164,1781888234000,-310.0,0.00030962,30]
[425782162,1781888234000,-7100.0,0.000309,11]
[425782161,1781888234000,-1896.57972958,0.00030894,2]
[425782167,1781888234000,-379.0,0.0003108,2]
[425782169,1781888234000,-191.9,0.000311,7]
[425782179,1781888234000,-150.0,0.0003161,2]
[425782173,1781888234000,-156.0,0.00031217,2]
[425782172,1781888234000,-1000.0,0.000312,7]
[425782180,1781888234000,-150.0,0.0003161,2]
[425782171,1781888234000,-1957.90369594,0.00031169,2]
[425782174,1781888234000,-903.66739741,0.00031218,2]
[425782178,1781888234000,-150.0,0.0003161,2]
[425782170,1781888234000,-2581.37361232,0.00031116,2]
[425782168,1781888234000,-329.61,0.0003109,2]
[425782176,1781888234000,-903.66739741,0.00031554,2]
[425782177,1781888234000,-329.61,0.0003156,7]
[425782181,1781888234000,-150.0,0.0003161,2]
[425782183,1781888234000,-150.0,0.0003161,2]
[425782190,1781888234000,-165.0,0.00031825,2]
[425782182,1781888234000,-150.0,0.0003161,2]
[425782184,1781888234000,-150.0,0.0003161,2]
[425782185,1781888234000,-150.0,0.0003161,2]
[425782213,1781888234000,-209.84,0.00032238,2]
[425782234,1781888234000,-535.93,0.00032749,7]
[425782220,1781888234000,-150.0,0.00032345,2]
[425782246,1781888234000,-501.62409538,0.00032955,2]
[425782248,1781888234000,-500.0,0.00032955,2]
[425782249,1781888234000,-500.0,0.00032955,2]
[425782250,1781888234000,-310.0,0.00032962,30]
[425782247,1781888234000,-500.0,0.00032955,2]
[425782251,1781888234000,-329.61,0.00032971,7]
[425782257,1781888234000,-12499.99,0.00033,2]
[425782256,1781888234000,-22500.0,0.00033,2]
[425782258,1781888234000,-10000.0,0.00033,2]
[425782255,1781888234000,-9999.99,0.00033,2]
[425782261,1781888234000,-3139.55,0.00033,2]
[425782259,1781888234000,-15000.0,0.00033,2]
[425782260,1781888234000,-4121.45,0.00033,2]
[425782266,1781888234000,-15000.0,0.00033,2]
[425782263,1781888234000,-10000.0,0.00033,2]
[425782262,1781888234000,-12499.99,0.00033,2]
[425782265,1781888234000,-12500.0,0.00033,2]
[425782267,1781888234000,-800.0,0.00033,2]
[425782264,1781888234000,-22500.0,0.00033,2]
[425782269,1781888234000,-15000.0,0.0003307,2]
[425782268,1781888234000,-15000.0,0.0003307,2]
[425782270,1781888234000,-22500.0,0.00033088,2]
[425782271,1781888234000,-22500.0,0.00033088,2]
[425782272,1781888234000,-7635.33158359,0.00033088,2]
[425782217,1781888234000,-506.0,0.00032273,13]
[425782242,1781888234000,-150.48387042,0.00032955,2]
[425782254,1781888234000,-22499.99,0.00033,2]
[425782252,1781888234000,-22499.96,0.00033,2]
[425782245,1781888234000,-150.0,0.00032955,2]
[425782216,1781888234000,-169.94,0.0003224,2]
[425782227,1781888234000,-161.41149006,0.0003249,2]
[425782228,1781888234000,-800.0,0.000325,2]
[425782218,1781888234000,-200.0,0.00032283,2]
[425782244,1781888234000,-150.0,0.00032955,2]
[425782221,1781888234000,-170.92559348,0.00032481,2]
[425782226,1781888234000,-164.42107454,0.00032482,2]
[425782223,1781888234000,-180.75390797,0.00032481,2]
[425782222,1781888234000,-182.81501244,0.00032481,2]
[425782225,1781888234000,-179.34096364,0.00032481,2]
[425782224,1781888234000,-168.3747909,0.00032481,2]
[425782231,1781888234000,-191.9,0.000326,7]
[425782229,1781888234000,-800.0,0.000325,2]
[425782219,1781888234000,-150.0,0.00032345,2]
[425782232,1781888234000,-494.585345,0.00032631,2]
[425782241,1781888234000,-434.61131837,0.00032877,2]
[425782243,1781888234000,-150.0,0.00032955,2]
[425782253,1781888234000,-8481.79,0.00033,2]
[425782237,1781888234000,-306.03288546,0.00032828,2]
[425782235,1781888234000,-551.19,0.00032801,7]
[425782236,1781888234000,-1817.92798677,0.00032813,2]
[425782240,1781888234000,-500.0,0.00032877,2]
[425782239,1781888234000,-500.0,0.00032877,2]
[425782238,1781888234000,-311.93,0.00032877,2]
[425782230,1781888234000,-329.61,0.00032501,2]
[425782233,1781888234000,-4923.22,0.00032676,2]
[425782286,1781888236000,-12500.0,0.00033175,2]
[425782281,1781888236000,-15000.0,0.0003314,2]
[425782282,1781888236000,-15000.0,0.0003314,2]
[425782283,1781888236000,-367.67341826,0.00033152,2]
[425782285,1781888236000,-22500.0,0.00033175,2]
[425782280,1781888236000,-542.3,0.000331,7]
[425782288,1781888236000,-15000.0,0.0003321,2]
[425782284,1781888236000,-22500.0,0.00033175,2]